Cogmind - Beta 9.4 @@@ ROGUE MODE // 2020.02.09 @ 23:39:45 Player: Zailor Result: Destroyed by Cetus Guard with Advanced Variable Charge Gun Performance ------------- Evolutions (4) 2000 Regions Visited (8) 1600 Robots Destroyed (66) 330 Value Destroyed (1781) 1781 Prototype IDs (3) 60 Alien Tech Used (0) 0 Bonus (276) 276 TOTAL SCORE: 6047 Bonus ------- High Alert Combat Kills 135 Follower Combat Kills 378 Friendly Fire -237 Cogmind --------- Core Integrity 0/850 Matter 179/300 Energy 160/160 System Corruption 1% Temperature Cool (11) Movement Treading (180) Ox1 Location -6/Cetus Parts ------- > --- POWER (1) -------- Light Fission Core > --- PROPULSION (6) --- Medium Treads > --- UTILITY (6) ------ Medium Storage Unit Medium Storage Unit Improved Signal Interpreter Advanced Melee Analysis Suite Hacking Suite > --- WEAPON (2) ------- Heavy Machine Gun Heavy Machine Gun > --- INVENTORY (12) --- High-capacity Storage Unit High-capacity Matter Pod (200) Advanced Melee Analysis Suite Improved Medium Armor Plating Improved Medium Armor Plating Magnetic Acceleration Cannon Precision Rocket Launcher Heavy Mace Heavy Pick Peak State ------------ > --- POWER ------------ Improved Ion Engine > --- PROPULSION ------- Medium Treads Improved Medium Treads Improved Medium Treads Improved Medium Treads Improved Medium Treads Compact Wheel > --- UTILITY ---------- Medium Storage Unit Medium Storage Unit Improved Signal Interpreter Advanced Melee Analysis Suite Improved Medium Armor Plating Hacking Suite > --- WEAPON ----------- Heavy Machine Gun Heavy Machine Gun > --- INVENTORY -------- Compact Wheel Gravmag System High-capacity Storage Unit High-capacity Matter Pod Improved Medium Armor Plating High-powered Tractor Beam Coil Gun Magnetic Acceleration Cannon Advanced EMP Blaster Precision Rocket Launcher Heavy Mace Heavy Pick [Rating: 57] Favorites ----------- Power Improved Ion Engine Engine Improved Ion Engine Power Core Fission Core Propulsion Compact Wheel Treads Improved Medium Treads Leg Aluminum Leg Wheel Compact Wheel Hover Unit Hover Unit Flight Unit Cesium-ion Thruster Utility Improved Signal Interpreter Device High-powered Tractor Beam Storage Medium Storage Unit Processor Improved Signal Interpreter Hackware Hacking Suite Protection Improved Light Armor Plating Weapon Assault Rifle Energy Gun Small Laser Ballistic Gun Assault Rifle Launcher Precision Rocket Launcher Impact Weapon Heavy Mace Piercing Weapon Spear Build | -11 -10 -9 -8 -8 -8 -6 -6 -6 ------- Run | Scr Mat Mat Mat Sto Rec Fac Ext Cet Slots Evolved 8 | . . 2 2 . . 4 . . Power . | . . . . . . . . . Propulsion 4 | . . 2 . . . 2 . . Utility 4 | . . . 2 . . 2 . . Weapon . | . . . . . . . . . Parts Attached 84 | 6 5 15 . 10 1 17 26 4 Power 8 | 1 1 1 . . . 3 1 1 Engine 4 | 1 1 1 . . . . 1 . Core 4 | . . . . . . 3 . 1 Reactor . | . . . . . . . . . Propulsion 27 | 2 . 10 . . . 3 12 . Treads 5 | . . . . . . . 5 . Leg 2 | . . 2 . . . . . . Wheel 9 | 2 . . . . . . 7 . Hover 6 | . . 4 . . . 2 . . Flight 5 | . . 4 . . . 1 . . Utility 25 | 1 2 2 . 7 . 6 7 . Device 10 | . . . . 5 . 4 1 . Storage 8 | 1 2 1 . 2 . . 2 . Processor 3 | . . 1 . . . 1 1 . Hackware 1 | . . . . . . . 1 . Protection 3 | . . . . . . 1 2 . Artifact . | . . . . . . . . . Weapon 24 | 2 2 2 . 3 1 5 6 3 Energy Gun 2 | 1 1 . . . . . . . Energy Cannon . | . . . . . . . . . Ballistic Gun 11 | 1 1 2 . 2 . . 3 2 Ballistic Cannon . | . . . . . . . . . Launcher 6 | . . . . 1 . 1 3 1 Special Weapon . | . . . . . . . . . Impact Weapon 2 | . . . . . 1 1 . . Slashing Weapon . | . . . . . . . . . Piercing Weapon 3 | . . . . . . 3 . . Special Melee Weapon . | . . . . . . . . . Unidentified Prototypes 3 | . . . . 1 . 2 . . Parts Lost 21 | . 1 1 . 3 . 7 . 9 Power 3 | . . . . . . 2 . 1 Propulsion 9 | . . . . 2 . 2 . 5 Utility 4 | . . . . . . 3 . 1 Weapon 5 | . 1 1 . 1 . . . 2 Highest Loss Streak 9 | . 1 1 . 3 . 3 . 9 Average Slot Usage (%) 81 | . 98 97 81 72 46 43 91 89 Engine 7 | . 14 11 9 9 9 2 5 5 Treads 6 | . . . . . . . 15 23 Wheel 11 | . 28 1 . . . . 20 5 Hover 6 | . . 39 . . . 1 . . Flight 5 | . . . 36 27 18 8 . . Device 1 | . . . . . . 4 1 . Storage 14 | . 26 20 9 15 9 5 12 13 Processor 9 | . . 1 9 9 9 11 16 13 Protection 2 | . . . . . . . 5 6 Energy Gun 2 | . 14 1 . . . . . . Ballistic Gun 8 | . 14 19 18 10 . . 5 12 Piercing Weapon 1 | . . . . . . 4 2 . Naked Turns . | . . . . . . . . . Heaviest Build 43 | 10 40 43 14 18 11 18 40 41 Greatest Support 148 | 26 26 26 24 24 12 23 148 148 Greatest Overweight (x) 6 | . 1 6 . 1 . 3 1 . Average Overweight (x) . | . . . . . . . . . Largest Inventory Capacity 16 | 6 16 16 6 6 6 6 12 12 Average Capacity 10 | 5 14 14 6 6 6 5 11 12 Most Carried 16 | 6 11 16 6 6 6 6 12 12 Average Carried 8 | 4 8 13 6 5 5 5 9 11 Final Capacity 16 | 6 16 6 6 6 6 4 12 12 Final Carried 12 | 6 10 6 6 6 6 4 12 9 Class Distribution -------------------- 58% | Mutant 33% | Scavenger-Mutant 5% | Sprinter Dominant Class ---------------- Mutant | -10/Materials Mutant | -9/Materials Sprinter | -8/Materials Mutant | -8/Storage Mutant | -8/Recycling Mutant | -6/Factory Scavenger-Mutant | -6/Extension Mutant | -6/Cetus Resources | -11 -10 -9 -8 -8 -8 -6 -6 -6 ----------- Run | Scr Mat Mat Mat Sto Rec Fac Ext Cet Matter Collected 2098 | 260 344 199 . 225 . 69 1001 . Remotely 30 | . . . . . . . 30 . Salvage Created 2666 | 92 374 266 . 174 . 69 1525 166 Parts 136 | 1 27 22 . 8 . 1 69 8 Haulers Intercepted 1 | . . . . . . . 1 . Recyclers Shooed 10 | . 3 1 . 1 . . 5 . Parts Field Recycled . | . . . . . . . . . Retrieved Matter . | . . . . . . . . . Parts Self-Destructed . | . . . . . . . . . Prevented . | . . . . . . . . . Kills | -11 -10 -9 -8 -8 -8 -6 -6 -6 ------- Run | Scr Mat Mat Mat Sto Rec Fac Ext Cet Combat Hostiles Destroyed 40 | . 11 6 . 3 . 1 17 2 Melee 3 | . . . . . . 1 2 . Guns 26 | . 11 6 . 3 . . 4 2 AOE 11 | . . . . . . . 11 . Classes Destroyed 10 | 1 2 1 . . . . 5 1 Worker 8 | . . . . . . . 8 . Builder 5 | . . . . . . . 5 . Tunneler 1 | . . . . . . . 1 . Hauler 1 | . . . . . . . 1 . Recycler 10 | 1 1 1 . . . . 7 . Watcher 1 | . . . . . . . . 1 Swarmer 13 | . 6 3 . . . . 4 . Grunt 20 | . 5 1 . 2 . 1 11 . Brawler 1 | . . . . . . . 1 . Sentry 4 | . . 2 . 1 . . 1 . Cetus Guard 2 | . . . . . . . . 2 Best Kill Streak 12 | 1 4 4 . 1 . 1 12 2 Combat Bots Only 6 | . 3 4 . 1 . 1 6 1 Max Kills in Single Turn 4 | 1 2 1 . 1 . 1 4 1 Gunslinging 1 | . 1 . . . . . . . Exploded 2 | . . . . . . . 2 . Melee 1 | . . . . . . 1 1 . Uniques/NPCs Destroyed . | . . . . . . . . . Combat | -11 -10 -9 -8 -8 -8 -6 -6 -6 -------- Run | Scr Mat Mat Mat Sto Rec Fac Ext Cet Damage Taken 3947 | . 324 99 . 489 . 971 970 1094 Core 1113 | . 65 13 . 149 . 482 300 104 Absorbed by Shields 28 | . . . . . . . 28 . Core Remaining (%) 85 | 100 74 96 . . 72 . . . Volleys Fired 139 | 8 33 17 2 23 . . 42 14 Largest 2 | 1 2 2 2 2 . . 2 2 Hottest 79 | 40 60 40 40 40 . . 79 66 Shots Fired 256 | 8 65 34 4 46 . . 71 28 Gun 211 | 8 65 34 4 46 . . 30 24 Cannon . | . . . . . . . . . Launcher 45 | . . . . . . . 41 4 Special . | . . . . . . . . . Kinetic 171 | . 33 34 4 46 . . 30 24 Thermal 40 | 8 32 . . . . . . . Explosive 35 | . . . . . . . 35 . Electromagnetic 10 | . . . . . . . 6 4 Robot Hit Streak 13 | 7 9 8 4 10 . . 13 13 Robot Miss Streak 7 | 1 4 7 1 3 . . 2 1 Penetration Max . | . . . . . . . . . Secondary Targets 5 | . 3 . . . . . . 2 Max Gunslinging Chain 1 | . 1 . . . . . . 1 Shots Hit Robots 190 | 7 41 22 2 37 . 4 52 25 Core Hits 135 | 2 17 11 2 12 . 2 77 12 Critical Hits 2 | . . . . . . . 1 1 Critical Kills 1 | . . . . . . . 1 . Critical Parts Destroyed . | . . . . . . . . . Melee Attacks 49 | . . . . . 1 32 16 . Impact 4 | . . . . . 1 3 . . Slashing . | . . . . . . . . . Piercing 45 | . . . . . . 29 16 . Sneak Attacks 4 | . . . . . . . 4 . Combat Hostiles 1 | . . . . . . . 1 . Follow-up Attacks . | . . . . . . . . . Damage Inflicted 7582 | 78 423 241 39 389 . 113 5341 958 Guns 2170 | 78 423 241 39 389 . . 476 524 Cannons . | . . . . . . . . . Explosions 4687 | . . . . . . . 4253 434 Melee 725 | . . . . . . 113 612 . Ramming . | . . . . . . . . . Kinetic 1863 | . 194 241 39 389 . . 476 524 Thermal 307 | 78 229 . . . . . . . Explosive 4107 | . . . . . . . 4107 . Electromagnetic 580 | . . . . . . . 146 434 Impact 30 | . . . . . . 30 . . Slashing . | . . . . . . . . . Piercing 695 | . . . . . . 83 612 . Highest Corruption 1 | . . . . . . . 1 1 Average Corruption 1 | . . . . . . . 1 1 Corruption Purged . | . . . . . . . . . Effects 1 | . . . . . . . 1 . Targeting Errors 1 | . . . . . . . 1 . Overload Shots . | . . . . . . . . . Overflow Damage 187 | . . . . . . . 150 37 Projectiles . | . . . . . . . . . Explosions 178 | . . . . . . . 141 37 Melee 9 | . . . . . . . 9 . Knockbacks . | . . . . . . . . . Impact . | . . . . . . . . . Kinetic . | . . . . . . . . . Secondary . | . . . . . . . . . Self-Inflicted Damage 108 | . . . . . . . 89 19 Shots 3 | . . . . . . . 2 1 Rammed . | . . . . . . . . . Targets Rammed . | . . . . . . . . . Kicked . | . . . . . . . . . Crushed . | . . . . . . . . . Highest Temperature 42 | . 42 4 3 17 . . 15 26 Average Temperature 12 | . 19 3 2 8 . . 5 9 Received Heat Transfer 1014 | . 102 24 . 243 . 219 255 171 Siege Activations . | . . . . . . . . . Robots Corrupted . | . . . . . . . . . Combat Hostiles . | . . . . . . . . . Parts Fried 1 | . . . . . . . . 1 Impact Corruptions . | . . . . . . . . . Robots Melted . | . . . . . . . . . Combat Hostiles . | . . . . . . . . . Parts Melted . | . . . . . . . . . Heat Transferred 700 | 175 525 . . . . . . . Parts Sabotaged . | . . . . . . . . . Parts Stolen . | . . . . . . . . . Parts Stripped . | . . . . . . . . . Power Chain Reactions 1 | . . . . . . . 1 . Missiles Intercepted . | . . . . . . . . . Alert | -11 -10 -9 -8 -8 -8 -6 -6 -6 ------- Run | Scr Mat Mat Mat Sto Rec Fac Ext Cet Peak Influence 733 | 5 339 184 30 145 51 653 733 326 Average Influence 270 | . 159 98 20 29 14 591 330 309 Maximum Alert Level 3 | . 1 . . . . 2 3 1 Low Security (%) 50 | 100 60 100 100 100 100 . 32 . Level 1 19 | . 39 . . . . . 32 100 Level 2 29 | . . . . . . 100 33 . Level 3 . | . . . . . . . 1 . Level 4 . | . . . . . . . . . Level 5 . | . . . . . . . . . High Security . | . . . . . . . . . Max Security . | . . . . . . . . . Squads Dispatched 12 | . 2 . . 2 . 3 5 . Investigation 4 | . . . . 1 . 1 2 . Extermination . | . . . . . . . . . Reinforcement 8 | . 2 . . 1 . 2 3 . Assault . | . . . . . . . . . Garrison . | . . . . . . . . . Intercept . | . . . . . . . . . Construction Impeded 2 | . . . . . . . 2 . Haulers Reinforced . | . . . . . . . . . Stealth | -11 -10 -9 -8 -8 -8 -6 -6 -6 --------- Run | Scr Mat Mat Mat Sto Rec Fac Ext Cet Distress Signals 5 | . 2 . . . . 1 1 1 Communications Jammed . | . . . . . . . . . Distress Signals . | . . . . . . . . . Times Spotted 119 | . 22 7 3 22 4 28 29 4 Peak Tracking Total 13 | . 6 4 3 9 3 13 5 5 Tactical Retreats 18 | . 2 . . 4 . 11 1 . Traps | -11 -10 -9 -8 -8 -8 -6 -6 -6 ------- Run | Scr Mat Mat Mat Sto Rec Fac Ext Cet Traps Triggered 2 | . . . . . . 1 1 . Indirectly . | . . . . . . . . . Trap Hack Attempts . | . . . . . . . . . Triggered . | . . . . . . . . . Disarmed . | . . . . . . . . . Reprogrammed . | . . . . . . . . . Reused . | . . . . . . . . . Traps Extracted . | . . . . . . . . . Installed . | . . . . . . . . . Triggered . | . . . . . . . . . Machines | -11 -10 -9 -8 -8 -8 -6 -6 -6 ---------- Run | Scr Mat Mat Mat Sto Rec Fac Ext Cet Machines Disabled 1 | . . . . . . . 1 . Max in Single Turn 1 | . . . . . . . 1 . Machines Sabotaged . | . . . . . . . . . Garrisons Compromised . | . . . . . . . . . Overloaded Fab Kills . | . . . . . . . . . Fab Network Shutdowns . | . . . . . . . . . Hacking | -11 -10 -9 -8 -8 -8 -6 -6 -6 --------- Run | Scr Mat Mat Mat Sto Rec Fac Ext Cet Machines Accessed 22 | . 2 1 . 6 4 2 7 . Terminals 22 | . 2 1 . 6 4 2 7 . Fabricators . | . . . . . . . . . Repair Stations . | . . . . . . . . . Recycling Units . | . . . . . . . . . Scanalyzers . | . . . . . . . . . Garrison Access . | . . . . . . . . . Total Hacks 69 | . 6 5 . 21 11 3 23 . Successful 25 | . 3 3 . 7 4 . 8 . Failed 44 | . 3 2 . 14 7 3 15 . Catastrophic 7 | . . . . 1 3 . 3 . Database Lockouts . | . . . . . . . . . Manual 49 | . 6 5 . 13 8 3 14 . Terminals 69 | . 6 5 . 21 11 3 23 . Fabricators . | . . . . . . . . . Repair Stations . | . . . . . . . . . Recycling Units . | . . . . . . . . . Scanalyzers . | . . . . . . . . . Garrison Access . | . . . . . . . . . Terminal Hacks 16 | . 1 2 . 5 2 . 6 . Open Door 4 | . . . . 1 . . 3 . Terminal Index 3 | . 1 1 . . 1 . . . Unreport Threat 6 | . . 1 . 3 1 . 1 . Recall Investigation 1 | . . . . . . . 1 . Recall Reinforcements 1 | . . . . . . . 1 . Registered Components 1 | . . . . 1 . . . . Fabricator Hacks . | . . . . . . . . . Repair Station Hacks . | . . . . . . . . . Recycling Unit Hacks . | . . . . . . . . . Scanalyzer . | . . . . . . . . . Garrison Access Hacks . | . . . . . . . . . Unauthorized Hacks 30 | . 6 2 . 6 5 3 8 . Terminals 9 | . 2 1 . 2 2 . 2 . Assimilate 1 | . 1 . . . . . . . Botnet 8 | . 1 1 . 2 2 . 2 . Fabricators . | . . . . . . . . . Repair Stations . | . . . . . . . . . Recycling Units . | . . . . . . . . . Scanalyzers . | . . . . . . . . . Garrison Access . | . . . . . . . . . Data Cores Recovered . | . . . . . . . . . Used . | . . . . . . . . . Hacking Detections 21 | . 2 1 . 5 4 2 7 . Full Trace Events 3 | . . . . 1 . . 2 . Feedback Events 1 | . . . . . . . 1 . Corruption 1 | . . . . . . . 1 . Feedback Blocked . | . . . . . . . . . Robot Schematics Acquired . | . . . . . . . . . Robots Built . | . . . . . . . . . Matter . | . . . . . . . . . Time . | . . . . . . . . . Total Robot Build Rating . | . . . . . . . . . Part Schematics Acquired . | . . . . . . . . . Parts Built . | . . . . . . . . . Matter . | . . . . . . . . . Time . | . . . . . . . . . Total Part Build Rating . | . . . . . . . . . Parts Repaired . | . . . . . . . . . Time . | . . . . . . . . . Parts Recycled . | . . . . . . . . . Recycled Matter . | . . . . . . . . . Retrieved Matter . | . . . . . . . . . Retrieved Components . | . . . . . . . . . Parts Scanalyzed . | . . . . . . . . . Part Schematics Acquired . | . . . . . . . . . Parts Damaged . | . . . . . . . . . Bothacking | -11 -10 -9 -8 -8 -8 -6 -6 -6 ------------ Run | Scr Mat Mat Mat Sto Rec Fac Ext Cet Used RIF Installer . | . . . . . . . . . Robots Hacked . | . . . . . . . . . Non-combat . | . . . . . . . . . Combat . | . . . . . . . . . Robot Hacks Applied . | . . . . . . . . . Relay Couplers Released . | . . . . . . . . . Robots Rewired . | . . . . . . . . . Allies Hacked . | . . . . . . . . . Hacks Repelled . | . . . . . . . . . Allies | -11 -10 -9 -8 -8 -8 -6 -6 -6 -------- Run | Scr Mat Mat Mat Sto Rec Fac Ext Cet Total Allies 15 | . 1 . . 10 . . 4 . Largest Group 11 | . 1 1 1 11 . . 4 . Highest-Rated Group 227 | . 10 10 10 183 . . 227 . Highest-Rated Ally 156 | . 10 10 10 29 . . 156 . Total Orders 17 | . . 7 3 7 . . . . GOTO 11 | . . 4 2 5 . . . . FOLLOW 6 | . . 3 1 2 . . . . Ally Attacks 112 | . . . . 58 . . 54 . Total Damage 2071 | . . . . 829 . . 1242 . Kills 13 | . . . . 5 . . 8 . Allies Corrupted . | . . . . . . . . . Allies Melted . | . . . . . . . . . Intel | -11 -10 -9 -8 -8 -8 -6 -6 -6 ------- Run | Scr Mat Mat Mat Sto Rec Fac Ext Cet Robot Analysis Total . | . . . . . . . . . Derelict Logs Recovered . | . . . . . . . . . Drone Launches 10 | . . . . 10 . . . . Drone Recoveries . | . . . . . . . . . Exploration | -11 -10 -9 -8 -8 -8 -6 -6 -6 ------------- Run | Scr Mat Mat Mat Sto Rec Fac Ext Cet Turns Passed 2838 | 78 424 411 24 264 74 515 978 70 Spaces Moved 2775 | 50 273 277 51 416 188 927 577 16 Core 135 | 4 . . . . . 87 44 . Treads 284 | . . . . . . . 268 16 Legs . | . . . . . . . . . Wheels 603 | 46 273 19 . . . . 265 . Hover 449 | . . 251 . . . 198 . . Flight 1304 | . . 7 51 416 188 642 . . Fastest Speed 31 | 50 90 31 31 31 37 32 50 160 Average Speed 70 | 86 98 102 31 35 37 42 124 160 Slowest Speed 420 | 90 100 420 31 117 37 200 180 160 Overloaded Moves . | . . . . . . . . . Propulsion Burnouts . | . . . . . . . . . Robots Hopped 25 | . . . . 14 4 7 . . Cave-ins Triggered . | . . . . . . . . . Exploration Rate (%) 32 | 5 49 26 6 55 46 31 63 10 Regions Visited 8 Branch Regions 4 Pre-discovered Areas . | . . . . . . . . . Known Exits Taken 6 | . . 1 1 1 1 1 1 . Unknown Exits Taken 2 | 1 1 . . . . . . . Scrap Searched . | . . . . . . . . . Spaces Dug 29 | . . . . . . 16 13 . Terrain Destroyed 268 | . . . . . . 16 252 . Melee 16 | . . . . . . 16 . . Projectile 1 | . . . . . . . 1 . AOE 251 | . . . . . . . 251 . Actions | -11 -10 -9 -8 -8 -8 -6 -6 -6 --------- Run | Scr Mat Mat Mat Sto Rec Fac Ext Cet Total 3303 | 73 364 378 54 477 186 1000 737 34 Wait 174 | 4 42 37 2 27 . 10 52 . Move 2723 | 49 272 276 50 390 180 914 576 16 Hop 19 | . . . . 11 3 5 . . Pick Up 39 | 6 7 9 . 2 . 5 10 . Fast Attach 55 | 6 1 8 . 8 . 12 20 . Attach 17 | . 1 6 . 1 1 4 1 3 Detach 16 | . . 6 . 1 1 3 5 . Swap 12 | . 3 1 . 1 . 1 5 1 Drop 58 | . 5 18 . 11 . 14 10 . Fire 139 | 8 33 17 2 23 . . 42 14 Melee 49 | . . . . . 1 32 16 . Ram . | . . . . . . . . . Kick . | . . . . . . . . . Crush . | . . . . . . . . . Escape Stasis . | . . . . . . . . . Rewire 2 | . . . . 2 . . . . Trap . | . . . . . . . . . Miscellaneous . | . . . . . . . . . Route ------- -11/Scrapyard -10/Materials (discovered 2 exits: *Mat / [*Min]) -9/Materials -8/Materials (discovered 2 exits: *Sto x2) -8/Storage -8/Recycling -6/Factory -6/Extension (discovered 2 exits: *Fac / *Cet) -6/Cetus History --------- Turn | Location | Event 17 | -11/Scrapyard | Discovered new exit (range 14) 79 | -11/Scrapyard | Entered Materials 113 | -10/Materials | Discovered new exit (range 11) 300 | -10/Materials | Build established: Mutant 442 | -10/Materials | Discovered new exit (range 15) 503 | -10/Materials | Entered another Materials area 503 | -9/Materials | Accompanied by 1 ally 503 | -9/Materials | Evolved 2 slots: Propulsion x2 832 | -9/Materials | Discovered new exit (range 3) 881 | -9/Materials | Identified exit to Materials 914 | -9/Materials | Entered another Materials area 914 | -8/Materials | Accompanied by 1 ally 914 | -8/Materials | Evolved 2 slots: Utility x2 926 | -8/Materials | Discovered new exit (range 16) 936 | -8/Materials | Discovered new exit (range 12) 936 | -8/Materials | Identified exit to Storage 938 | -8/Materials | Entered Storage 938 | -8/Storage | Accompanied by 1 ally 945 | -8/Storage | Assisted by bots powering up and referring to "LRC-V3" 1112 | -8/Storage | Lost 3 parts (2n1w) 1195 | -8/Storage | Used back door to open Recycling access 1195 | -8/Storage | Discovered new exit (range 5) 1202 | -8/Storage | Identified exit to Recycling 1202 | -8/Storage | Entered Recycling 1238 | -8/Recycling | Spotter reported a threat 1238 | -8/Recycling | Spotter reported a threat 1249 | -8/Recycling | Discovered new exit (range 6) 1252 | -8/Recycling | Identified exit to Factory 1254 | -8/Recycling | Spotter reported a threat 1269 | -8/Recycling | Spotter reported a threat 1276 | -8/Recycling | Entered Factory 1276 | -6/Factory | Evolved 4 slots: Propulsion x2, Utility x2 1349 | -6/Factory | Spotted B-75 Beast 1740 | -6/Factory | Core integrity fell below 50% 1770 | -6/Factory | Discovered new exit (range 15) 1775 | -6/Factory | Lost 3 parts (1p1n1u) 1785 | -6/Factory | Identified exit to Extension 1791 | -6/Factory | Entered Extension 1826 | -6/Extension | Core integrity fell below 20% 1871 | -6/Extension | Rescued A7 2101 | -6/Extension | Rescued a captive Derelict 2134 | -6/Extension | Rescued a captive Derelict 2137 | -6/Extension | Rescued a captive Derelict 2143 | -6/Extension | Build established: Scavenger-Mutant 2169 | -6/Extension | Spotted B-75 Beast 2175 | -6/Extension | Spotted B-75 Beast 2202 | -6/Extension | Allies destroyed B-75 Beast 2366 | -6/Extension | Disrupted transfer network 2596 | -6/Extension | Discovered new exit (range 16) 2596 | -6/Extension | Discovered new exit (range 16) 2648 | -6/Extension | Identified exit to Cetus 2656 | -6/Extension | Identified exit to Factory 2769 | -6/Extension | Entered Cetus 2790 | -6/Cetus | Spotted Cetus Guard 2793 | -6/Cetus | Spotted Cetus Guard 2794 | -6/Cetus | Spotted Cetus Guard 2794 | -6/Cetus | Spotted Cetus Guard 2815 | -6/Cetus | Destroyed Cetus Guard 2837 | -6/Cetus | Destroyed Cetus Guard 2839 | -6/Cetus | Destroyed by Cetus Guard with Advanced Variable Charge Gun Last Messages --------------- 02816_ Penetrated by Slug. 02818_ Slug penetrates Cetus Guard. 02819_ Penetrated by Slug. 02822_ Slug penetrates Wall. 02822_ Penetrated by Slug. 02824_ Slug penetrates Cetus Guard. 02825_ Imp. Medium Treads destroyed. 02825_ Com. Wheel destroyed. 02825_ Slug penetrates Wall. 02828_ Imp. Ion Engine destroyed. 02828_ Penetrated by Slug. 02829_ Slug penetrates Wall. 02830_ Slug penetrates Cetus Guard. 02832_ Penetrated by Slug. 02832_ Slug penetrates Cetus Guard. 02832_ Coil Gun destroyed. 02832_ Penetrated by Slug. 02832_ Imp. Medium Armor Plating destroyed. 02837_ Cetus Guard destroyed. 02837_ Switching to secondary target: Cetus Guard. Map ----- +----------------------------------------------------+ | ?????????????????????????????????????????? | | ?????????????????????????????????????????? | | ?????????????????????????????????????????? | | ?????????????????????????????????????????? | | ?????????????????????????????????????????? | | ?????????????????????????????????????????? | | ?????????????????????????????????????????? | | ?????????????????????????????????????????? | | ?????????????????????????????????????????? | | ?????????????????????????????????????????? | | ?????????????????????????????????????????? | | ?????????????????????????????????????????? | | ?????????????????????????????????????????? | | ?????????????????????????????????????????? | | ?????????????????????????????????????????? | | ?????????????????????????????????????????? | | ?????????????????????????????????????????? | | ?????????????????????????????????????????? | | ?????????????????????????????????????????? | | ?????????????????????????????????????????? | | ?????????????????????????????????????????? | | ?????????????????????????????????????????? | | ?????????????????????????????????????????? | | ????????????????###?????? #??????????????? | | ?##########;#;;##;##;## [#####??????????? | | ?# @ Y !%* ????????? | | ?# [%Y =! ????????? | | ?# ! ????????? | | ?##########;####;###############?????????? | | ???????????????##????????????????????????? | | ?????????????????????????????????????????? | | ?????????????????????????????????????????? | | ?????????????????????????????????????????? | | ?????????????????????????????????????????? | | ?????????????????????????????????????????? | | ?????????????????????????????????????????? | | ?????????????????????????????????????????? | | ?????????????????????????????????????????? | | ?????????????????????????????????????????? | | ?????????????????????????????????????????? | | ?????????????????????????????????????????? | | ?????????????????????????????????????????? | | ?????????????????????????????????????????? | | ?????????????????????????????????????????? | | ?????????????????????????????????????????? | | ?????????????????????????????????????????? | | ?????????????????????????????????????????? | | ?????????????????????????????????????????? | | ?????????????????????????????????????????? | | ?????????????????????????????????????????? | +----------------------------------------------------+ Best States ------------- Heat Dissipation 47 Energy Generation 18 Energy Capacity 665 Matter Stores 300 Matter Capacity 300 Sight Range 16 Terrain Scan Density 10 Power Amplification 20 Additional Mass Support 9 Armor Coverage 225 Melee Speed Boost 20 Evasion (%) 63 Melee Accuracy 8 Core Analysis 6 Recoil Reduction 5 Offensive Hacking 10 Item Schematics ----------------- None Robot Schematics ------------------ None Fabricated ------------ Nothing Alien Tech Used ----------------- None Achievements -------------- None Challenges ------------ None Game ------ Seed IntegrationPowerKatana Manual? 0 Play Time 00:50:20 Cumulative 81.5 hours Start 2020.02.09 @ 22:50:37 End 2020.02.09 @ 23:39:45 Sessions 1 Manual Loads 0 Difficulty Rogue Special Mode None Game No. 82 Rogue 82 Adventurer 0 Explorer 0 Win Type - Total 0 Types 0/0/0/0/0/0/0 Lore% 48 Gallery% 55 Achievement% 41 Wizard Run 0 Options --------- ASCII 0 Keyboard 1 Movement Vi Keybinds 0 Fullscreen 1 Font 18/X11 Map View 76x50 Tactical HUD 1 Map Filters NONE Filters NONE Steam 1 RUN: bc04a0be-6498-493f-872a-5f34a7a01c9c